bitfinex/quotes_ETHUSD_20220731
["timestamp","ask_amount","ask_price","bid_price","bid_amount"]
[1659305652796,0.03505589,1698.0,1697.4,0.2944]
[1659305653137,0.03505589,1698.0,1697.5,3.34626771]
[1659305653337,0.03505589,1698.0,1697.5,3.78946771]
[1659305653570,0.03505589,1698.0,1697.6,3.6476193]
[1659305653879,0.03505589,1698.0,1697.7,0.6]
[1659305654035,0.03505589,1698.0,1697.7,0.8943403]
[1659305654235,0.03505589,1698.0,1697.8,0.29434]
[1659305654484,0.03505589,1698.0,1697.8,0.353208]
[1659305654666,0.03505589,1698.0,1697.8,0.653208]
[1659305655038,0.03505589,1698.0,1697.8,2.124768]
[1659305655236,0.05,1698.4,1697.8,2.124768]
[1659305655237,0.05,1698.4,1697.9,0.3]
[1659305655474,3.8089,1698.6,1698.1,0.35313]
[1659305655475,0.05,1698.6,1698.1,0.35313]
[1659305655785,0.54471435,1698.7,1698.2,0.59429]
[1659305655934,0.54471435,1698.7,1698.2,0.3]
[1659305656133,0.2,1698.5,1698.1,0.058855]
[1659305656574,0.54471435,1698.5,1698.1,0.058855]
[1659305657127,0.54471435,1698.5,1697.9,0.02176654]
[1659305657489,0.2,1698.2,1697.9,0.02176654]
[1659305658390,0.54471435,1698.2,1697.9,0.02176654]
[1659305662115,2.89804672,1698.1,1697.9,0.02176654]
[1659305664519,2.89804672,1698.1,1697.9,0.01848709]
[1659305665067,0.54471435,1698.2,1697.9,0.01848709]
[1659305665068,0.34471435,1698.2,1697.9,0.01848709]
[1659305665423,0.34471435,1698.2,1697.9,0.02953259]
[1659305665758,0.34471435,1698.2,1697.7,0.03841219]
[1659305665970,0.34471435,1698.2,1697.7,3.23645891]
[1659305666130,8.1653,1698.4,1697.8,0.29434]
[1659305666484,8.1153,1698.4,1697.8,4.1886755]
[1659305666635,8.1153,1698.4,1697.9,0.02953259]
[1659305666820,8.1153,1698.4,1698.0,0.0588693]
[1659305667863,8.1153,1698.4,1697.3,0.2944248]
[1659305667864,2.70049359,1697.8,1697.3,0.2944248]
[1659305668024,0.2,1697.5,1697.3,0.83589411]
[1659305668230,0.4,1697.4,1697.3,0.54146931]
[1659305668467,0.4,1697.4,1696.7,0.2944556]
[1659305668468,15.29804672,1697.4,1696.7,0.2944556]
[1659305668625,6.39804672,1697.3,1696.4,0.5890899]
[1659305668831,0.4,1696.9,1696.8,0.0589129]
[1659305669179,0.4,1697.1,1696.8,0.0589129]
[1659305669329,1.05,1697.4,1696.8,0.0589129]
[1659305669534,2.89804672,1697.3,1696.8,0.0589129]
[1659305669733,0.34471435,1697.4,1696.8,0.0589129]
[1659305670133,3.44276107,1697.4,1696.8,0.0589129]
[1659305670455,0.2,1697.0,1696.8,0.0589129]
[1659305670662,3.29804672,1696.9,1696.8,0.0589129]
[1659305671030,3.29804672,1696.9,1696.5,0.058924]
[1659305671283,3.09804672,1696.9,1696.5,0.058924]
[1659305671768,2.89804672,1696.9,1696.5,0.058924]
[1659305672146,2.89804672,1697.1,1696.6,3.9434]
[1659305672328,2.89804672,1697.1,1696.7,5.33259884]
[1659305672675,2.89804672,1697.1,1696.8,1.03776]
[1659305672967,2.89804672,1697.1,1696.8,4.33776]
[1659305673171,2.89804672,1697.1,1696.8,3.89446]
[1659305673381,0.05,1697.4,1696.8,3.89446]
[1659305673563,2.89804672,1697.4,1696.8,4.071144]
[1659305673879,2.89804672,1697.4,1696.9,3.3]
[1659305673880,0.34471435,1697.4,1696.9,3.3]
[1659305674061,0.34471435,1697.4,1696.9,0.3]
[1659305674230,0.34471435,1697.4,1696.8,0.3]
[1659305674432,0.34471435,1697.4,1696.7,4.33789]
[1659305674959,0.05,1697.5,1697.0,0.029451]
[1659305675168,7.8403,1697.7,1697.0,0.472751]
[1659305675476,7.7903,1697.7,1697.0,0.029451]
[1659305675915,2.89804672,1697.6,1697.0,0.029451]
[1659305676128,0.2,1697.3,1697.0,0.029451]
[1659305676292,2.89804672,1697.2,1696.9,0.3]
[1659305676493,3.44276107,1697.3,1696.6,0.05]
[1659305676692,3.44276107,1697.3,1696.5,0.6406862]
[1659305677008,7.24156107,1697.3,1696.5,0.1472862]
[1659305677216,7.24156107,1697.3,1696.6,0.00252144]
[1659305677421,7.24156107,1697.3,1696.6,2.90056816]
[1659305677422,4.14351435,1697.3,1696.6,2.90056816]
[1659305677916,4.14351435,1697.3,1696.9,0.1767118]
[1659305677917,0.34471435,1697.3,1696.9,0.1767118]
[1659305678665,0.05,1697.5,1696.9,0.1767118]
[1659305678873,7.7059,1697.7,1697.0,3.9433]
[1659305678874,0.05,1697.7,1697.0,3.9433]
[1659305679072,3.1386,1697.9,1697.1,5.89804672]
[1659305679073,0.05,1697.8,1697.1,5.89804672]
[1659305679265,3.1886,1697.9,1697.2,0.2944]
[1659305679465,3.1386,1697.9,1697.4,0.0294447]
[1659305679915,6.03664672,1697.9,1697.4,0.0294447]
[1659305681318,6.03664672,1697.9,1697.3,0.4266685]
[1659305682077,6.38136107,1697.9,1697.3,0.4266685]
[1659305683007,0.05,1698.0,1697.4,3.22187142]
[1659305683176,0.05,1698.2,1697.6,3.5]
[1659305683375,13.6446,1698.6,1697.7,6.19804672]
[1659305683376,0.05,1698.4,1697.7,6.19804672]
[1659305683592,0.05,1698.5,1697.9,3.5]
[1659305683770,0.05,1698.7,1698.0,3.3]
[1659305683972,3.8711,1698.8,1698.2,0.029428]
[1659305684219,3.8211,1698.8,1698.2,0.029428]
[1659305684383,4.16581435,1698.8,1698.2,0.329428]
[1659305684713,4.16581435,1698.8,1698.3,0.1471317]
[1659305685214,0.05,1699.0,1698.4,2.89804672]
[1659305685418,13.7012,1699.1,1698.6,0.1471164]
[1659305686408,2.89804672,1699.0,1698.6,0.1471164]
[1659305686724,0.2,1698.8,1698.4,0.3294245]
[1659305686929,2.89804672,1698.7,1698.4,0.0294245]
[1659305687482,0.34471435,1698.6,1698.4,0.0294245]
[1659305687684,2.89804672,1698.5,1698.1,3.0]
[1659305687869,3.09804672,1698.5,1698.0,0.1471248]
[1659305688044,2.89804672,1698.4,1698.0,0.1471248]
[1659305688242,3.24276107,1698.4,1698.0,0.1471248]
[1659305688972,3.24276107,1698.4,1698.3,0.0294332]
[1659305689779,3.24276107,1698.4,1698.0,0.0294377]
[1659305690180,3.24276107,1698.4,1697.7,0.05]
[1659305690181,2.89804672,1698.3,1697.7,0.05]
[1659305690394,0.443,1698.2,1697.7,0.0294436]
[1659305690683,2.89804672,1698.1,1697.7,0.0294436]
[1659305690936,8.2345,1698.3,1697.7,0.0294436]
[1659305691489,0.03648345,1698.1,1697.7,0.05455739]
[1659305691730,0.03648345,1698.1,1697.7,0.20173749]
[1659305691918,0.03648345,1698.1,1697.7,0.49607749]
[1659305692126,0.03648345,1698.1,1697.7,2.70173749]
[1659305692297,0.03648345,1698.1,1697.7,3.30173749]
[1659305692500,0.03648345,1698.1,1697.8,3.0]
[1659305692749,0.03648345,1698.1,1697.8,3.3]
[1659305692932,0.03648345,1698.1,1697.9,0.0294351]
[1659305693848,0.2,1697.7,1697.6,0.5887]
[1659305694051,0.2,1697.7,1697.3,0.66396538]
[1659305694052,0.8431,1697.6,1697.3,0.66396538]
[1659305694371,0.2,1696.9,1696.4,7.6445]
[1659305694586,0.54471435,1696.9,1696.6,0.00252144]
[1659305694752,0.54471435,1696.9,1696.6,0.03197964]
[1659305695168,0.34471435,1696.9,1696.6,0.03197964]
[1659305695380,7.9102,1697.2,1696.6,0.03197964]
[1659305695675,0.03270782,1696.8,1696.6,0.3239982]
[1659305695884,0.03270782,1696.8,1696.6,0.6184882]
[1659305696452,0.03270782,1696.8,1696.6,1.2184882]
[1659305697093,0.03270782,1696.8,1696.6,0.9239982]
[1659305697442,0.03270782,1696.8,1696.6,0.6294582]
[1659305697857,0.03270782,1696.8,1696.6,0.3294582]
[1659305698146,0.03270782,1696.8,1696.7,0.3]
[1659305699527,0.58209472,1697.0,1696.7,0.3]
[1659305700221,0.58209472,1697.0,1696.6,0.0294582]
[1659305700826,3.48014144,1697.0,1696.6,0.0294582]
[1659305700977,0.58209472,1697.0,1696.3,3.0794655]
[1659305701177,0.03738037,1697.0,1696.3,3.0294655]
[1659305701404,0.03738037,1697.0,1696.4,0.4418405]
[1659305701576,0.03738037,1697.0,1696.5,0.0294583]
[1659305701777,0.03738037,1697.0,1696.5,0.3294583]
[1659305702997,0.23738037,1697.0,1696.6,0.1472795]
[1659305703204,0.23738037,1697.0,1696.6,3.1472795]
[1659305703345,0.23738037,1697.0,1696.6,0.7472795]
[1659305703544,0.23738037,1697.0,1696.6,0.4472795]
[1659305703743,0.23738037,1697.0,1696.6,0.7472795]
[1659305703974,0.03738037,1697.0,1696.6,0.4472795]
[1659305704188,0.03738037,1697.0,1696.7,0.3]
[1659305704546,0.03738037,1697.0,1696.7,0.25]
[1659305705147,0.03738037,1697.0,1696.8,5.62175521]
[1659305705347,0.03738037,1697.0,1696.9,5.89804672]
[1659305705562,0.05,1697.4,1696.9,5.89804672]
[1659305705563,0.03738037,1697.3,1696.9,5.89804672]
[1659305705789,0.03738037,1697.3,1696.9,6.19251672]
[1659305706006,0.03738037,1697.3,1697.0,0.0294481]
[1659305706309,0.03738037,1697.3,1697.0,3.3294481]
[1659305706605,0.03738037,1697.3,1697.0,0.3294481]
[1659305706811,0.03738037,1697.3,1697.0,0.9238881]
[1659305707389,0.03738037,1697.3,1697.0,3.82193482]
[1659305707797,0.08738037,1697.6,1697.2,0.29439]
[1659305707997,0.08738037,1697.6,1697.2,0.88878]
[1659305707998,0.03738037,1697.6,1697.2,0.88878]
[1659305708207,0.03738037,1697.6,1697.3,0.0294397]
[1659305709274,0.03738037,1697.6,1697.3,2.92748642]
[1659305709477,0.03738037,1697.6,1697.4,3.3]
[1659305709693,0.03738037,1697.6,1697.4,3.7471973]
[1659305709893,0.03738037,1697.6,1697.5,2.89804672]
[1659305710093,0.05,1698.0,1697.5,3.19804672]
[1659305710399,0.05,1698.2,1697.6,5.92748022]
[1659305710589,0.34471435,1698.1,1697.7,0.1471894]
[1659305710789,0.05,1698.4,1697.7,0.4471894]
[1659305711005,14.0754,1698.6,1697.8,3.49236672]
[1659305711006,2.8693,1698.5,1697.8,3.49236672]
[1659305711209,2.8693,1698.5,1698.0,0.1765647]
[1659305711210,2.8193,1698.5,1698.0,0.1765647]
[1659305711495,11.2561,1698.6,1698.0,0.1765647]
[1659305711813,10.8132,1698.6,1698.0,3.66314142]
[1659305712018,10.8132,1698.6,1698.0,4.26314142]
[1659305712190,11.15791435,1698.6,1698.0,1.3650947]
[1659305712394,0.4429,1698.5,1698.0,1.3650947]
[1659305712584,11.15791435,1698.6,1698.1,2.89804672]
[1659305712793,10.8132,1698.6,1698.2,3.7765597]
[1659305713091,9.6739,1698.8,1698.3,0.29423]
[1659305713748,9.6739,1698.8,1698.2,4.0707897]
[1659305713749,0.2,1698.6,1698.2,3.6294266]
[1659305713905,0.34471435,1698.5,1698.2,0.6294266]
[1659305714104,0.34471435,1698.5,1698.2,0.3294266]
[1659305714304,0.34471435,1698.5,1698.2,0.0294266]
[1659305714548,0.31496733,1698.3,1698.2,0.0294266]
[1659305716057,3.21301405,1698.3,1698.2,0.0294266]
[1659305716259,0.2,1698.1,1697.8,0.05]
[1659305716539,11.53511405,1698.3,1697.5,0.29437]
[1659305716540,8.43706733,1698.3,1697.5,0.34437]
[1659305716749,8.47311269,1698.3,1698.2,0.02486613]
[1659305719528,12.11587376,1698.3,1698.2,0.02486613]
[1659305720328,0.024,1698.2,1697.8,0.0794428]
[1659305720532,0.4,1697.9,1697.8,0.0294428]
[1659305720950,3.44276107,1698.1,1697.8,0.0294428]
[1659305721159,0.31496733,1697.9,1697.8,0.0294428]
[1659305721471,0.51496733,1697.9,1697.8,0.0294428]
[1659305721628,0.55190076,1697.9,1697.8,0.0294428]
[1659305722203,0.35190076,1697.9,1697.8,0.0294428]
[1659305722345,10.19166183,1697.9,1697.4,0.05]
[1659305722544,10.19166183,1697.9,1697.2,0.05]
[1659305722545,9.09504672,1697.7,1697.2,0.05]
[1659305722860,9.09504672,1697.7,1697.2,0.1472122]
[1659305722861,0.4431,1697.6,1697.2,0.1472122]
[1659305723056,3.34114672,1697.7,1697.2,0.1472122]
[1659305723230,11.44894672,1697.7,1697.1,0.00233519]
[1659305723433,0.1,1697.5,1697.2,0.1766593]
[1659305724066,0.1,1697.3,1697.2,0.0294471]
[1659305724226,3.44124672,1697.3,1696.8,0.0794626]
[1659305724428,2.99804672,1697.3,1696.8,0.0294626]
[1659305724672,0.1,1697.1,1696.8,0.0294626]
[1659305725055,0.1,1696.9,1696.8,0.0294626]
[1659305725443,4.2427,1697.3,1696.8,0.0294626]
[1659305725643,3.7495,1697.3,1696.8,0.0294626]
[1659305726245,3.7495,1697.3,1696.8,3.8239426]
[1659305726595,0.03693343,1697.4,1697.1,0.029444]
[1659305726887,6.45246733,1697.6,1697.4,0.1]
[1659305726888,0.00096733,1697.6,1697.4,0.1]
[1659305727086,0.05,1697.9,1697.5,2.89804672]
[1659305727286,0.05,1698.2,1697.6,0.1]
[1659305727597,8.2057,1698.6,1697.9,0.1]
[1659305727598,0.05,1698.4,1697.9,0.1]
[1659305727747,7.8128,1698.6,1697.9,2.99804672]
[1659305728086,7.7628,1698.6,1698.0,0.3294307]
[1659305728238,7.7628,1698.6,1698.0,3.3294307]
[1659305728685,0.03561438,1698.3,1698.0,3.3294307]
[1659305729099,0.03561438,1698.3,1698.0,3.6237385]
[1659305730212,0.03561438,1698.3,1698.1,0.69427]
[1659305730417,0.03561438,1698.3,1698.1,0.99427]
[1659305730602,0.05,1698.6,1698.2,2.89804672]
[1659305730941,3.7695,1698.8,1698.4,0.4706728]
[1659305731147,8.2878,1699.0,1698.4,0.7706728]
[1659305731148,8.3378,1699.0,1698.4,0.7706728]
[1659305731422,8.2878,1699.0,1698.4,0.9177585]
[1659305731605,0.05,1699.2,1698.5,0.2942]
[1659305731804,9.4395,1699.3,1698.6,0.0294215]
[1659305731805,9.4895,1699.3,1698.6,0.0294215]
[1659305732010,0.05,1699.4,1698.7,2.89804672]
[1659305732279,0.05,1699.5,1698.8,6.6]
[1659305732390,0.05328577,1699.6,1699.0,0.1]
[1659305732591,0.00328577,1699.6,1699.0,5.99804672]
[1659305732841,0.00328577,1699.6,1699.1,3.3]
[1659305733006,0.00328577,1699.6,1699.2,0.0294109]
[1659305733208,8.2808,1699.7,1699.2,0.0294109]
[1659305734641,2.8678,1699.9,1699.3,2.99804672]
[1659305734811,0.5,1700.0,1699.3,2.99804672]
[1659305734812,0.55,1700.0,1699.6,0.1]
[1659305735017,0.5,1700.0,1699.9,0.1]
[1659305735214,0.5,1700.0,1699.9,6.29804672]
[1659305736660,0.5,1700.0,1699.9,3.3]
[1659305736876,0.5,1700.0,1699.8,0.0293954]
[1659305737246,0.3,1699.9,1699.8,0.0293954]
[1659305737420,0.64471435,1699.9,1699.8,0.0293954]
[1659305737626,0.029,1699.8,1699.5,0.0294109]
[1659305737862,0.029,1699.8,1699.5,0.1764376]
[1659305738365,0.029,1699.8,1699.5,0.7704476]
[1659305738538,0.029,1699.8,1699.5,1.0704476]
[1659305738740,0.029,1699.8,1699.5,0.7704476]
[1659305738939,0.34471435,1699.9,1699.5,1.0704476]
[1659305739324,0.05,1700.2,1699.8,2.6]
[1659305739523,0.05,1700.4,1699.9,6.19804672]
[1659305739799,7.9882,1700.6,1699.9,6.19804672]
[1659305739921,7.9382,1700.6,1699.9,6.19804672]
[1659305741085,10.83624672,1700.6,1699.9,3.3]
[1659305741234,0.34471435,1700.5,1700.0,3.0]
[1659305741433,0.34471435,1700.5,1700.0,3.3]
[1659305741775,0.34471435,1700.5,1700.1,0.0293979]
[1659305741959,3.24276107,1700.5,1700.1,0.0293979]
[1659305742131,2.89804672,1700.4,1700.1,0.0293979]
[1659305742334,0.3,1700.2,1699.9,0.3]
[1659305742534,5.69804672,1700.2,1699.8,0.3]
[1659305742786,5.39804672,1700.2,1699.7,0.3294075]
[1659305743279,5.74276107,1700.2,1699.7,0.3294075]
[1659305743450,5.84276107,1700.2,1699.7,0.3294075]
[1659305743688,0.1,1700.0,1699.7,0.3294075]
[1659305743895,2.99804672,1700.0,1699.7,0.3]
[1659305744198,0.05,1699.7,1699.4,0.05]
[1659305744404,0.05,1699.7,1699.3,0.0294135]
[1659305744772,0.39471435,1699.7,1699.3,0.0294135]
[1659305745310,11.882,1699.9,1699.3,0.0294135]
[1659305745472,15.07476107,1699.9,1699.3,0.0294135]
[1659305745805,0.05,1699.8,1699.3,0.0294135]
[1659305746004,2.89804672,1699.7,1699.3,0.0294135]
[1659305746246,0.34471435,1699.6,1699.3,0.0294135]
[1659305747631,0.34471435,1699.6,1699.4,0.053333]
[1659305747835,2.55,1699.5,1699.4,0.053333]
[1659305748045,2.5,1699.5,1699.4,0.053333]
[1659305749009,5.39804672,1699.5,1699.4,0.053333]
[1659305749557,5.84064672,1699.5,1699.4,0.053333]
[1659305749709,5.64804672,1699.5,1699.4,0.053333]
[1659305749909,19.28764672,1699.5,1699.0,0.05]
[1659305750143,19.28764672,1699.5,1698.9,0.0294221]
[1659305750144,0.25,1699.0,1698.9,0.0294221]
[1659305750325,0.25,1699.0,1698.5,0.05]
[1659305750326,0.05,1698.6,1698.5,0.05]
[1659305750530,0.05,1698.6,1698.3,0.29424]
[1659305750738,0.05,1698.6,1698.1,7.9099457]
[1659305750909,0.35,1698.6,1698.1,7.9099457]
[1659305751259,0.05,1698.6,1698.1,4.9841]
[1659305751561,0.05,1698.8,1698.2,10.443]
[1659305751868,0.05,1698.9,1698.2,10.743]
[1659305752159,0.05,1699.0,1698.3,2.89804672]
[1659305752319,0.05,1699.1,1698.4,3.4429]
[1659305752519,8.6588,1699.2,1698.5,2.89804672]
[1659305752742,8.3088,1699.2,1698.6,3.0]
[1659305752957,8.3088,1699.2,1698.6,5.89804672]
[1659305753315,0.05,1699.1,1698.6,3.0]
[1659305753513,0.39471435,1699.1,1698.4,3.05]
[1659305753761,0.39471435,1699.1,1698.5,2.89804672]
[1659305753914,0.39471435,1699.1,1698.6,3.0]
[1659305754115,0.69471435,1699.1,1698.6,3.0]
[1659305754544,0.64471435,1699.1,1698.6,3.0]
[1659305754981,0.64471435,1699.1,1698.7,2.89804672]
[1659305755213,5.05,1699.4,1699.3,2.65]
[1659305755214,0.05,1699.4,1699.3,2.65]
[1659305755409,0.05,1699.8,1699.3,8.54804672]
[1659305755569,8.1344,1700.0,1699.4,2.89804672]
[1659305755900,8.1344,1700.0,1699.6,0.15]
[1659305755901,0.00238889,1699.7,1699.6,0.15]
[1659305756254,0.00238889,1699.7,1699.5,3.17598436]
[1659305756456,8.1344,1700.0,1699.1,3.05]
[1659305756656,8.1344,1700.0,1699.2,2.89804672]
[1659305756873,8.4344,1700.0,1699.3,3.0]
[1659305757095,8.7344,1700.0,1699.3,5.89804672]
[1659305757319,8.7344,1700.0,1699.3,2.89804672]
[1659305757684,8.7344,1700.0,1699.4,3.0]
[1659305758779,8.7344,1700.0,1699.4,3.344]
[1659305760093,11.63244672,1700.0,1699.4,3.344]
[1659305760259,11.63244672,1700.0,1699.5,3.0]
[1659305760459,11.63244672,1700.0,1699.4,0.344]
[1659305760698,11.63244672,1700.0,1698.6,0.4429]
[1659305760699,7.55,1699.8,1698.6,0.4429]
[1659305760908,7.55,1699.8,1698.5,5.054]
[1659305760909,0.1,1699.6,1698.5,5.054]
[1659305761072,0.05,1699.4,1698.5,4.6111]
[1659305761270,0.05,1699.4,1698.7,0.15]
[1659305761271,8.0962,1699.4,1698.7,0.15]
[1659305761495,8.3462,1699.4,1698.7,0.15]
[1659305761807,8.6462,1699.4,1698.7,0.32598436]
[1659305762009,8.6462,1699.4,1698.7,3.22403108]
[1659305762437,8.6462,1699.4,1698.8,3.0]
[1659305762802,8.6462,1699.4,1698.8,3.17598436]
[1659305763213,0.00252726,1699.9,1699.1,6.39804672]
[1659305763417,14.2562,1700.4,1699.3,5.80112854]
[1659305763696,14.2562,1700.4,1699.6,0.29399]
[1659305763939,0.39471435,1700.3,1699.7,2.89804672]
[1659305764307,0.39471435,1700.3,1699.8,3.0]
[1659305764507,0.39471435,1700.3,1699.8,5.89804672]
[1659305764708,13.8138,1700.4,1699.9,3.04804672]
[1659305764911,13.8138,1700.4,1699.9,3.22403108]
[1659305765313,8.1398,1700.4,1699.9,5.89248392]
[1659305765496,11.08784672,1700.4,1699.8,3.0]
[1659305765728,11.08784672,1700.4,1699.6,0.05]
[1659305766044,0.05,1700.2,1699.5,0.05]
[1659305766302,0.05,1700.2,1699.5,2.89804672]
[1659305766595,0.05,1700.2,1699.6,3.0]
[1659305768354,0.05,1700.2,1699.4,0.05]
[1659305768355,3.24276107,1700.1,1699.4,0.05]
[1659305768558,3.24276107,1700.1,1699.3,0.05]
[1659305768559,6.39804672,1700.0,1699.3,0.05]
[1659305768754,6.39804672,1700.0,1699.0,3.2965]
[1659305768755,2.94804672,1699.9,1699.2,0.05]
[1659305768968,0.05,1699.6,1699.1,0.05]
[1659305769188,0.7426,1699.5,1698.6,0.29416]
[1659305769402,0.7426,1699.5,1698.3,3.0824]
[1659305769403,0.05,1698.9,1698.8,4.33045]
[1659305769596,0.05,1698.9,1698.1,12.163]
[1659305769597,0.05,1698.9,1698.1,0.29426]
[1659305769781,0.05,1698.7,1698.1,0.29426]
[1659305770028,0.34471435,1698.8,1698.4,0.15]
[1659305770393,0.35,1699.0,1698.5,0.29418]
[1659305770593,0.05,1699.2,1698.6,0.15]
[1659305770892,0.05,1699.4,1698.7,0.29414]
[1659305771093,0.34471435,1699.4,1698.7,0.47012436]
[1659305771325,0.34471435,1699.4,1698.9,0.15]
[1659305771534,0.34471435,1699.4,1698.9,0.29411]
[1659305771696,0.34471435,1699.4,1698.8,0.17598436]
[1659305771895,0.34471435,1699.4,1698.6,3.0]
[1659305772224,0.05,1699.3,1698.7,0.29416]
[1659305772597,0.05,1699.3,1698.6,3.0]
[1659305772598,0.05,1699.1,1698.6,3.0]
[1659305772799,2.89804672,1699.0,1698.4,0.05]
[1659305773005,0.05,1698.9,1698.4,0.05]
[1659305773221,0.05,1698.9,1698.3,0.29423]
[1659305773640,0.65,1699.0,1698.3,0.29423]
[1659305773843,0.65,1699.0,1698.5,0.15]
[1659305773844,0.3,1699.0,1698.5,0.15]
[1659305774037,10.0026,1699.1,1698.6,0.2942]
[1659305774239,10.0026,1699.1,1698.6,0.47018436]
[1659305774466,0.05,1699.3,1698.6,3.36823108]
[1659305774670,0.05,1699.4,1698.7,6.22403108]
[1659305774825,8.3257,1699.5,1699.0,0.15]
[1659305775024,8.2757,1699.5,1699.0,0.15]
[1659305775276,11.17374672,1699.5,1699.0,0.15]
[1659305775474,8.2757,1699.5,1699.1,0.29411]
[1659305775953,8.62041435,1699.5,1699.1,0.29411]
[1659305776160,0.4427,1699.4,1699.0,0.15]
[1659305776948,0.4427,1699.4,1698.8,0.47014436]
[1659305777137,0.4427,1699.4,1698.6,7.9997]
[1659305777138,0.05,1699.0,1698.6,7.9997]
[1659305777434,0.2,1699.2,1698.6,7.9997]
[1659305777435,0.05,1699.2,1698.6,3.0]
[1659305777563,2.89804672,1699.1,1698.5,0.29421]
[1659305777889,0.05,1698.8,1698.3,0.05]
[1659305778073,0.05,1698.8,1698.2,16.6471]
[1659305778438,0.34471435,1698.7,1698.2,16.6471]
[1659305778638,0.34471435,1698.7,1698.2,4.9271]
[1659305779278,0.34471435,1698.7,1698.3,3.0]
[1659305780471,12.71014672,1699.1,1698.3,3.0]
[1659305780472,2.7073,1699.6,1698.9,0.15]
[1659305780784,2.7073,1699.6,1698.8,5.94804672]
[1659305780988,2.89804672,1699.5,1698.8,3.0]
[1659305781252,0.05,1699.3,1698.7,0.34418]
[1659305781376,0.05,1699.1,1698.5,3.05]
[1659305781587,0.05,1699.1,1698.3,0.05]
[1659305781588,0.05,1698.6,1698.3,0.05]
[1659305781788,2.55,1698.4,1698.1,12.37276273]
[1659305781988,2.55,1698.4,1698.0,0.34431]
[1659305781989,0.05,1698.1,1698.0,0.29431]
[1659305782904,0.05,1698.1,1697.7,0.29435]
[1659305783427,0.05,1698.1,1697.7,0.47033436]
[1659305784623,0.05,1698.1,1697.8,0.17598436]
[1659305785386,0.05,1698.1,1697.7,0.29435]
[1659305787233,3.15,1698.4,1697.7,0.47033436]
[1659305787390,2.8,1698.4,1697.8,0.494]
[1659305787591,2.8,1698.4,1697.8,0.344]
[1659305787831,2.8,1698.4,1697.9,0.17598436]
[1659305787832,2.94804672,1698.3,1697.9,0.17598436]
[1659305788035,2.94804672,1698.3,1697.7,0.29435]
[1659305788036,0.05,1698.0,1697.7,0.29435]
[1659305788897,0.05,1698.0,1697.5,0.2944]
[1659305789140,0.05,1698.0,1697.3,0.05]
[1659305789336,0.05,1698.0,1697.3,2.89804672]
[1659305789540,2.94804672,1698.0,1697.4,0.17598436]
[1659305789698,3.69104672,1698.0,1697.4,0.17598436]
[1659305789900,0.793,1698.0,1697.4,0.17598436]
[1659305790102,6.39804672,1697.7,1697.4,0.17598436]
[1659305790318,3.34114672,1697.6,1697.3,1.5344072]
[1659305790513,0.4431,1697.7,1697.0,0.34448]
[1659305790738,2.89804672,1697.6,1696.9,0.05]
[1659305790947,2.89804672,1697.6,1696.8,0.05]
[1659305790948,0.4432,1697.5,1696.8,0.05]
[1659305791130,0.7432,1697.5,1696.7,0.05]
[1659305791343,0.7932,1697.5,1696.8,0.344]
[1659305791517,8.3281,1697.4,1696.8,0.344]
[1659305791706,8.6281,1697.4,1696.8,0.344]
[1659305791906,8.6281,1697.4,1696.8,0.63849]
[1659305793310,8.6281,1697.4,1696.8,3.63849]
[1659305793925,8.6281,1697.4,1696.8,0.63849]
[1659305794306,3.4577,1697.5,1696.8,0.63849]
[1659305794307,0.4932,1697.5,1696.9,2.89804672]
[1659305794509,0.3,1697.5,1697.0,3.63846]
[1659305794832,0.7931,1697.7,1697.0,3.63846]
[1659305795006,0.3,1697.7,1697.0,3.63846]
[1659305795203,6.8118,1697.8,1697.0,0.63846]
[1659305795403,9.65984672,1697.8,1697.0,0.63846]
[1659305796271,2.89804672,1697.7,1697.0,0.63846]
[1659305796488,0.4431,1697.6,1697.0,0.63846]
[1659305797176,3.99114672,1697.7,1697.0,0.63846]
[1659305797494,3.94114672,1697.7,1697.0,0.63846]
[1659305797639,3.94114672,1697.7,1697.0,0.93846]
[1659305797640,3.34114672,1697.7,1697.0,0.93846]
[1659305797831,2.89804672,1697.7,1697.0,0.93846]
[1659305798580,6.2118,1697.8,1697.2,0.29444]
[1659305798737,6.1618,1697.8,1697.2,3.29444]
[1659305799071,6.1618,1697.8,1697.2,3.63844]
[1659305799441,6.4618,1697.8,1697.2,3.63844]
[1659305799743,2.89804672,1697.7,1697.2,3.63844]
[1659305799947,2.89804672,1697.7,1697.2,0.63844]
[1659305800164,2.89804672,1697.7,1697.2,0.29444]
[1659305800469,2.89804672,1697.7,1697.3,0.04206779]
[1659305800470,3.49804672,1697.7,1697.3,0.04206779]
[1659305802489,3.34114672,1697.6,1697.3,0.04206779]
[1659305803553,2.89804672,1697.6,1697.3,0.04206779]
[1659305803817,1.0431,1697.7,1697.3,0.04206779]
[1659305803944,3.94114672,1697.7,1697.3,0.04206779]
[1659305804351,1.0431,1697.7,1697.3,0.04206779]
[1659305804564,0.6,1697.7,1697.3,0.04206779]
[1659305804766,2.89804672,1697.7,1697.3,0.04206779]
[1659305805079,0.4431,1697.6,1697.3,0.04206779]
[1659305805272,0.3,1697.6,1697.3,0.04206779]
[1659305805586,10.10294672,1697.8,1697.3,0.04206779]
[1659305806465,6.1618,1697.8,1697.3,3.28411451]
[1659305806671,0.05,1698.0,1697.4,8.66423424]
[1659305806854,3.927,1698.1,1697.5,3.19238672]
[1659305807054,3.927,1698.1,1697.6,3.0]
[1659305807373,3.927,1698.1,1697.7,0.344]
[1659305807597,3.927,1698.1,1697.7,0.63837]
[1659305807731,0.2,1697.8,1697.6,3.0]
[1659305807933,0.2,1697.8,1697.3,0.04206779]
[1659305807934,3.09804672,1697.8,1697.3,0.04206779]
[1659305808180,0.2,1697.6,1697.3,0.04206779]
[1659305808790,0.6,1697.7,1697.3,0.04206779]
[1659305808938,2.708,1697.8,1697.2,0.29447]